fUSD/lending_fUSD_20240121
["ID","MTS","AMOUNT","RATE_DAILY","PERIOD"]
[312440270,1705876440307,-1147.94,0.00041643,31]
[312440271,1705876440347,-500.0,0.00041643,31]
[312440272,1705876440375,-500.0,0.00041643,31]
[312440273,1705876440403,-500.0,0.00041643,31]
[312440274,1705876440430,-500.0,0.00041643,31]
[312440275,1705876440457,-506.94168402,0.00041643,31]
[312440276,1705876440485,-500.0,0.00041643,31]
[312440277,1705876440512,-2707.16021476,0.00042,30]
[312440278,1705876440539,-500.0,0.00042191,31]
[312440279,1705876440566,-500.0,0.00042191,31]
[312440280,1705876440597,-500.0,0.00042191,31]
[312440281,1705876440623,-500.0,0.00042191,31]
[312440282,1705876440650,-500.0,0.00042191,31]
[312440283,1705876440676,-500.0,0.00042191,31]
[312440284,1705876440703,-500.0,0.00042191,31]
[312440285,1705876440729,-500.0,0.00042191,31]
[312440286,1705876440756,-500.0,0.00042191,31]
[312440287,1705876440783,-500.0,0.00042191,31]
[312440288,1705876440809,-500.0,0.00042191,31]
[312440289,1705876440835,-500.0,0.00042191,31]
[312440290,1705876440862,-500.0,0.00042191,31]
[312440291,1705876440889,-573.41,0.00042191,31]
[312440292,1705876440916,-486.54936015,0.00042191,31]
[312440293,1705876440946,-500.0,0.00042191,31]
[312440294,1705876441010,-500.0,0.00042191,31]
[312440295,1705876441038,-500.0,0.00042191,31]
[312440296,1705876441067,-500.0,0.00042191,31]
[312440297,1705876441092,-500.0,0.00042191,31]
[312440298,1705876441122,-500.0,0.00042191,31]
[312440299,1705876441149,-500.0,0.00042191,31]
[312440300,1705876441175,-500.0,0.00042191,31]
[312440301,1705876441201,-500.0,0.00042191,31]
[312440302,1705876441228,-568.04,0.00042191,31]
[312440303,1705876441254,-500.0,0.00042191,31]
[312440304,1705876441279,-500.0,0.00042191,31]
[312440305,1705876441306,-500.0,0.00042191,31]
[312440306,1705876441332,-500.0,0.00042191,31]
[312440307,1705876441358,-500.0,0.00042191,31]
[312440308,1705876441386,-512.25077313,0.00042191,31]
[312440309,1705876441413,-500.0,0.00042191,31]
[312440310,1705876441440,-500.0,0.00042191,31]
[312440311,1705876441466,-500.0,0.00042191,31]
[312440312,1705876441493,-500.0,0.00042191,31]
[312440313,1705876441520,-500.0,0.00042191,31]
[312440314,1705876441546,-523.93,0.00042191,31]
[312440315,1705876441572,-500.0,0.00042191,31]
[312440316,1705876441598,-500.0,0.00042191,31]
[312440317,1705876441625,-500.0,0.00042191,31]
[312440318,1705876441652,-500.0,0.00042191,31]
[312440319,1705876441678,-500.0,0.00042191,31]
[312440320,1705876441704,-500.0,0.00042191,31]
[312440321,1705876441733,-500.0,0.00042191,31]
[312440322,1705876441760,-500.0,0.00042191,31]
[312440323,1705876441787,-500.0,0.00042191,31]
[312440324,1705876441815,-500.0,0.00042191,31]
[312440325,1705876441843,-500.0,0.00042191,31]
[312440326,1705876441870,-500.0,0.00042191,31]
[312440327,1705876441897,-500.0,0.00042191,31]
[312440328,1705876441927,-516.25,0.00042191,31]
[312440329,1705876441953,-500.0,0.00042191,31]
[312440330,1705876441981,-579.47,0.00042191,31]
[312440331,1705876442007,-500.0,0.00042191,31]
[312440332,1705876442036,-500.0,0.00042191,31]
[312440333,1705876442064,-500.0,0.00042191,31]
[312440334,1705876442090,-500.0,0.00042191,31]
[312440335,1705876442116,-500.0,0.00042191,31]
[312440336,1705876442142,-586.62305111,0.00042191,31]
[312440337,1705876442168,-500.0,0.00042191,31]
[312440338,1705876442196,-500.0,0.00042191,31]
[312440339,1705876442223,-500.0,0.00042191,31]
[312440340,1705876442249,-500.0,0.00042191,31]
[312440341,1705876442277,-500.0,0.00042191,31]
[312440342,1705876442392,-500.0,0.00042191,31]
[312440343,1705876442419,-500.0,0.00042191,31]
[312440344,1705876442445,-500.0,0.00042191,31]
[312440345,1705876442470,-500.0,0.00042191,31]
[312440346,1705876442496,-500.0,0.00042191,31]
[312440347,1705876442522,-500.0,0.00042191,31]
[312440348,1705876442548,-500.0,0.00042191,31]
[312440349,1705876442574,-500.0,0.00042191,31]
[312440350,1705876442599,-500.0,0.00042191,31]
[312440351,1705876442624,-500.0,0.00042191,31]
[312440352,1705876442651,-500.0,0.00042191,31]
[312440353,1705876442679,-500.0,0.00042191,31]
[312440354,1705876442705,-572.23948161,0.00042191,31]
[312440355,1705876442731,-510.45428535,0.00042191,31]
[312440356,1705876442756,-500.0,0.00042191,31]
[312440357,1705876442781,-509.28,0.00042191,31]
[312440358,1705876442806,-500.0,0.00042191,31]
[312440359,1705876442832,-515.58090849,0.00042191,31]
[312440360,1705876442858,-500.0,0.00042191,31]
[312440361,1705876442884,-500.0,0.00042191,31]
[312440362,1705876442909,-500.0,0.00042191,31]
[312440363,1705876442935,-500.0,0.00042191,31]
[312440364,1705876442961,-500.0,0.00042191,31]
[312440365,1705876442987,-500.0,0.00042191,31]
[312440366,1705876443014,-500.0,0.00042191,31]
[312440367,1705876443040,-500.0,0.00042191,31]
[312440368,1705876443069,-500.0,0.00042191,31]
[312440369,1705876443096,-500.0,0.00042191,31]
[312440370,1705876443122,-508.85,0.00042191,31]
[312440371,1705876443148,-608.21,0.00042191,31]
[312440372,1705876443176,-579.63,0.00042191,31]
[312440373,1705876443201,-500.0,0.00042191,31]
[312440374,1705876443227,-500.0,0.00042191,31]
[312440375,1705876443253,-231.27400724,0.00042191,31]
[312440376,1705876443278,-631.82,0.00042191,31]
[312440377,1705876443303,-500.0,0.00042191,31]
[312440378,1705876443329,-500.0,0.00042191,31]
[312440379,1705876443355,-691.35,0.00042191,31]
[312440380,1705876443381,-500.0,0.00042191,31]
[312440381,1705876443407,-500.0,0.00042191,31]
[312440382,1705876443435,-571.31,0.00042191,31]
[312440383,1705876443461,-453.94985874,0.00042191,31]
[312440384,1705876443488,-500.0,0.00042191,31]
[312440385,1705876443515,-500.0,0.00042191,31]
[312440386,1705876443541,-500.0,0.00042191,31]
[312440387,1705876443567,-598.31,0.00042191,31]
[312440388,1705876443591,-500.0,0.00042191,31]
[312440389,1705876443618,-568.0,0.00042191,31]
[312440390,1705876443644,-578.79,0.00042191,31]
[312440391,1705876443670,-500.0,0.00042191,31]
[312440392,1705876443695,-500.0,0.00042191,31]
[312440393,1705876443722,-500.0,0.00042191,31]
[312440394,1705876443748,-500.0,0.00042191,31]
[312440395,1705876443774,-500.0,0.00042191,31]
[312440396,1705876443800,-785.88,0.00042191,31]
[312440397,1705876443826,-500.0,0.00042191,31]
[312440398,1705876443852,-500.0,0.00042191,31]
[312440399,1705876443877,-529.13,0.00042191,31]
[312440400,1705876443905,-672.41,0.00042191,31]
[312440401,1705876443930,-500.0,0.00042191,31]
[312440402,1705876443956,-1247.62,0.00042191,31]
[312440403,1705876443986,-1000.0,0.00042191,31]
[312440404,1705876444013,-500.0,0.00042191,31]
[312440405,1705876444039,-701.01,0.00042191,31]
[312440406,1705876444064,-500.0,0.00042191,31]
[312440407,1705876444091,-500.0,0.00042191,31]
[312440408,1705876444116,-946.03,0.00042191,31]
[312440409,1705876444141,-500.0,0.00042191,31]
[312440410,1705876444167,-500.0,0.00042191,31]
[312440411,1705876444194,-500.0,0.00042191,31]
[312440412,1705876444221,-793.65,0.00042191,31]
[312440413,1705876444247,-990.74,0.00042191,31]
[312440414,1705876444273,-877.0,0.00042191,31]
[312440415,1705876444298,-508.13963313,0.00042191,31]
[312440416,1705876444325,-500.0,0.00042191,31]
[312440417,1705876444352,-500.0,0.00042191,31]
[312440418,1705876444377,-793.7,0.00042191,31]
[312440419,1705876444403,-500.0,0.00042191,31]
[312440420,1705876444427,-500.0,0.00042191,31]
[312440421,1705876444451,-541.02,0.00042191,31]
[312440422,1705876444475,-782.88,0.00042191,31]
[312440423,1705876444501,-812.33,0.00042191,31]
[312440424,1705876444527,-385.2,0.00042191,31]
[312440425,1705876444552,-885.09,0.00042191,31]
[312440426,1705876444575,-500.0,0.00042191,31]
[312440427,1705876444600,-500.0,0.00042191,31]
[312440428,1705876444624,-500.0,0.00042191,31]
[312440429,1705876444648,-1025.68,0.00042191,31]
[312440430,1705876444673,-500.0,0.00042191,31]
[312440431,1705876444702,-500.0,0.00042191,31]
[312440432,1705876444726,-500.0,0.00042191,31]
[312440433,1705876444751,-730.86,0.00042191,31]
[312440434,1705876444774,-500.0,0.00042191,31]
[312440435,1705876444797,-500.0,0.00042191,30]
[312440436,1705876444821,-500.0,0.00042191,31]
[312440437,1705876444846,-500.0,0.00042191,31]
[312440438,1705876444870,-582.85,0.00042191,31]
[312440439,1705876444896,-864.2,0.00042191,31]
[312440440,1705876444921,-500.0,0.00042191,31]
[312440441,1705876444945,-500.0,0.00042191,31]
[312440442,1705876444971,-500.0,0.00042191,31]
[312440443,1705876445000,-500.0,0.00042191,31]
[312440444,1705876445024,-500.0,0.00042191,31]
[312440445,1705876445056,-216.36,0.00042191,31]
[312440446,1705876445246,-777.61,0.00042191,31]
[312440447,1705876445275,-500.0,0.00042191,31]
[312440448,1705876445300,-500.0,0.00042191,31]
[312440449,1705876445326,-500.0,0.00042191,31]
[312440450,1705876445351,-500.0,0.00042191,31]
[312440451,1705876445377,-263.19,0.00042191,31]
[312440452,1705876445402,-500.0,0.00042191,31]
[312440453,1705876445428,-212.99,0.00042191,31]
[312440454,1705876445453,-500.0,0.00042191,31]
[312440455,1705876445482,-1284.57,0.00042191,31]
[312440456,1705876445507,-1369.47,0.00042191,31]
[312440457,1705876445532,-390.56269095,0.00042191,31]
[312440458,1705876445557,-500.0,0.00042191,31]
[312440459,1705876445582,-607.98,0.00042191,31]
[312440460,1705876445607,-935.41,0.00042191,31]
[312440461,1705876445632,-505.47,0.00042191,31]
[312440462,1705876445657,-500.0,0.00042191,31]
[312440463,1705876445683,-551.0,0.00042191,31]
[312440464,1705876445708,-806.13,0.00042191,31]
[312440465,1705876445733,-500.0,0.00042191,31]
[312440466,1705876445758,-500.0,0.00042191,31]
[312440467,1705876445783,-798.96,0.00042191,31]
[312440468,1705876445808,-500.0,0.00042191,31]
[312440469,1705876445834,-500.0,0.00042191,31]
[312440470,1705876445858,-500.0,0.00042191,31]
[312440471,1705876445884,-500.0,0.00042191,31]
[312440472,1705876445908,-500.0,0.00042191,31]
[312440473,1705876445934,-590.77,0.00042191,31]
[312440474,1705876445959,-500.0,0.00042191,31]
[312440475,1705876445985,-707.32,0.00042191,31]
[312440476,1705876446009,-939.62,0.00042191,31]
[312440477,1705876446037,-1811.75,0.00042191,31]
[312440478,1705876446061,-500.0,0.00042191,31]
[312440479,1705876446087,-500.0,0.00042191,31]
[312440480,1705876446112,-500.0,0.00042191,31]
[312440481,1705876446137,-500.0,0.00042191,31]
[312440482,1705876446163,-500.0,0.00042191,31]
[312440483,1705876446188,-500.0,0.00042191,31]
[312440484,1705876446213,-500.0,0.00042191,31]
[312440485,1705876446239,-500.0,0.00042191,31]
[312440486,1705876446264,-1072.0,0.00042191,31]
[312440487,1705876446290,-552.64,0.00042191,31]
[312440488,1705876446322,-500.0,0.00042191,31]
[312440489,1705876446348,-500.0,0.00042191,31]
[312440490,1705876446374,-805.58,0.00042191,31]
[312440491,1705876446400,-506.95,0.00042191,31]
[312440492,1705876446426,-530.48947865,0.00042191,31]
[312440493,1705876446451,-500.0,0.00042191,31]
[312440494,1705876446477,-605.93,0.00042191,31]
[312440495,1705876446501,-513.78926746,0.00042191,31]
[312440496,1705876446527,-500.0,0.00042191,31]
[312440497,1705876446552,-272.59,0.00042191,31]
[312440498,1705876446578,-500.0,0.00042191,31]
[312440499,1705876446603,-1097.88,0.00042191,31]
[312440500,1705876446630,-268.08,0.00042191,30]
[312440501,1705876446654,-500.0,0.00042191,31]
[312440502,1705876446679,-845.1,0.00042191,31]
[312440503,1705876446704,-500.0,0.00042191,31]
[312440504,1705876446729,-539.96655389,0.00042191,31]
[312440505,1705876446754,-512.78,0.00042191,31]
[312440506,1705876446779,-500.0,0.00042191,31]
[312440507,1705876446803,-500.0,0.00042191,31]
[312440508,1705876446828,-521.41,0.00042191,31]
[312440509,1705876446852,-500.0,0.00042191,31]
[312440510,1705876446877,-788.32,0.00042191,31]
[312440511,1705876446901,-720.24,0.00042191,31]
[312440512,1705876446925,-500.0,0.00042191,31]
[312440513,1705876446954,-500.0,0.00042191,31]
[312440514,1705876446980,-518.74,0.00042191,31]
[312440515,1705876447005,-500.0,0.00042191,31]
[312440516,1705876447031,-500.0,0.00042191,31]
[312440517,1705876447056,-500.0,0.00042191,31]
[312440518,1705876447082,-500.0,0.00042191,31]
[312440519,1705876447106,-500.0,0.00042191,31]
[312440520,1705876447131,-500.0,0.00042191,31]
[312440521,1705876447157,-1173.58,0.00042191,31]
[312440522,1705876447183,-500.0,0.00042191,31]
[312440523,1705876447208,-810.11,0.00042191,31]
[312440524,1705876447234,-547.76,0.00042191,31]
[312440525,1705876447259,-500.0,0.00042191,31]
[312440526,1705876447284,-898.08,0.00042191,31]
[312440527,1705876447309,-500.0,0.00042191,31]
[312440528,1705876447335,-500.0,0.00042191,31]
[312440529,1705876447359,-1249.82,0.00042191,31]
[312440530,1705876447383,-500.0,0.00042191,31]
[312440531,1705876447408,-500.0,0.00042191,31]
[312440532,1705876447433,-644.21,0.00042191,31]
[312440533,1705876447458,-500.0,0.00042191,31]
[312440534,1705876447484,-598.75,0.00042191,31]
[312440535,1705876447510,-500.0,0.00042191,31]
[312440536,1705876447887,-500.0,0.00042191,31]
[312440537,1705876447926,-340.85532126,0.00042191,31]
[312440538,1705876447952,-500.0,0.00042191,31]
[312440539,1705876447981,-1092.57,0.00042191,31]
[312440540,1705876448006,-500.0,0.00042191,31]
[312440541,1705876448033,-500.0,0.00042191,31]
[312440542,1705876448061,-1011.23,0.00042191,31]
[312440543,1705876448086,-860.96,0.00042191,31]
[312440544,1705876448112,-500.0,0.00042191,31]
[312440545,1705876448139,-500.0,0.00042191,31]
[312440546,1705876448164,-500.0,0.00042191,31]
[312440547,1705876448189,-500.0,0.00042191,31]
[312440548,1705876448213,-1118.43,0.00042191,31]
[312440549,1705876448239,-500.0,0.00042191,31]
[312440550,1705876448264,-749.11,0.00042191,31]
[312440551,1705876448289,-500.0,0.00042191,31]
[312440552,1705876448314,-731.16,0.00042191,31]
[312440553,1705876448339,-723.92,0.00042191,31]
[312440554,1705876448364,-500.0,0.00042191,31]
[312440555,1705876448390,-500.0,0.00042191,31]
[312440556,1705876448414,-500.0,0.00042191,31]
[312440557,1705876448438,-500.0,0.00042191,31]
[312440558,1705876448463,-500.0,0.00042191,31]
[312440559,1705876448487,-500.0,0.00042191,31]
[312440560,1705876448512,-513.01708582,0.00042191,31]
[312440561,1705876448536,-500.0,0.00042191,31]
[312440562,1705876448561,-500.0,0.00042191,31]
[312440563,1705876448586,-500.0,0.00042191,31]
[312440564,1705876448610,-654.99,0.00042191,31]
[312440565,1705876448634,-1172.22,0.00042191,31]
[312440566,1705876448659,-500.0,0.00042191,31]
[312440567,1705876448682,-1046.22,0.00042191,31]
[312440568,1705876448705,-500.0,0.00042191,31]
[312440569,1705876448729,-785.66,0.00042191,31]
[312440570,1705876448753,-500.0,0.00042191,31]
[312440571,1705876448777,-643.91,0.00042191,31]
[312440572,1705876448801,-500.0,0.00042191,31]
[312440573,1705876448826,-500.0,0.00042191,31]
[312440574,1705876448851,-501.64,0.00042191,31]
[312440575,1705876448874,-500.0,0.00042191,31]
[312440576,1705876448898,-500.0,0.00042191,31]
[312440577,1705876448921,-500.0,0.00042191,31]
[312440578,1705876448945,-500.0,0.00042191,31]
[312440579,1705876448969,-500.0,0.00042191,31]
[312440580,1705876448998,-562.71,0.00042191,31]
[312440581,1705876449027,-552.21,0.00042191,31]
[312440582,1705876449052,-500.0,0.00042191,31]
[312440583,1705876449076,-500.0,0.00042191,31]
[312440584,1705876449100,-500.0,0.00042191,31]
[312440585,1705876449124,-708.83,0.00042191,31]
[312440586,1705876449150,-500.0,0.00042191,31]
[312440587,1705876449174,-537.54981697,0.00042191,31]
[312440588,1705876449198,-500.0,0.00042191,31]
[312440589,1705876449224,-500.0,0.00042191,31]
[312440590,1705876449249,-500.0,0.00042191,31]
[312440591,1705876449274,-1106.03,0.00042191,31]
[312440592,1705876449298,-645.89,0.00042191,31]
[312440593,1705876449323,-624.82151283,0.00042191,31]
[312440594,1705876449347,-426.84106011,0.00042191,31]
[312440595,1705876449373,-500.0,0.00042191,31]
[312440596,1705876449398,-500.0,0.00042191,31]
[312440597,1705876449422,-646.94,0.00042191,31]
[312440598,1705876449446,-500.0,0.00042191,31]
[312440599,1705876449470,-353.18131378,0.00042191,31]
[312440600,1705876449494,-500.0,0.00042191,31]
[312440601,1705876449518,-500.0,0.00042191,31]
[312440602,1705876449542,-500.0,0.00042191,31]
[312440603,1705876449567,-500.0,0.00042191,31]
[312440604,1705876449591,-2098.17,0.00042191,31]
[312440605,1705876449617,-500.0,0.00042191,31]
[312440606,1705876449641,-941.47,0.00042191,31]
[312440607,1705876449667,-500.0,0.00042191,31]
[312440608,1705876449761,-500.0,0.00042191,31]
[312440609,1705876449785,-161.41841787,0.00042191,31]
[312440610,1705876449809,-797.7,0.00042191,31]
[312440611,1705876449833,-500.0,0.00042191,31]
[312440612,1705876449857,-635.48,0.00042191,31]
[312440613,1705876449881,-500.0,0.00042191,31]
[312440614,1705876449905,-1769.8,0.00042191,31]
[312440615,1705876449929,-581.22,0.00042191,31]
[312440616,1705876449952,-500.0,0.00042191,31]
[312440617,1705876449978,-500.0,0.00042191,31]
[312440618,1705876450002,-500.0,0.00042191,31]
[312440619,1705876450033,-1092.51,0.00042191,31]
[312440620,1705876450057,-500.0,0.00042191,31]
[312440621,1705876450081,-500.0,0.00042191,31]
[312440622,1705876450105,-4348.24,0.00042191,31]
[312440623,1705876450129,-500.0,0.00042191,31]
[312440624,1705876450153,-1051.73,0.00042191,31]
[312440625,1705876450177,-1382.88,0.00042191,31]
[312440626,1705876450201,-1951.96,0.00042191,31]
[312440627,1705876450225,-611.42,0.00042191,31]
[312440628,1705876450249,-500.0,0.00042191,31]
[312440629,1705876450273,-992.54,0.00042191,31]
[312440630,1705876450297,-500.0,0.00042191,31]
[312440631,1705876450321,-500.0,0.00042191,31]
[312440632,1705876450347,-500.18,0.00042191,31]
[312440633,1705876450370,-565.87,0.00042191,31]
[312440634,1705876450396,-3573.17,0.00042191,31]
[312440635,1705876450420,-1928.6,0.00042191,31]
[312440636,1705876450445,-818.93,0.00042191,31]
[312440637,1705876450471,-500.0,0.00042191,31]
[312440638,1705876450495,-500.0,0.00042191,31]
[312440639,1705876450518,-588.35,0.00042191,31]
[312440640,1705876450542,-709.96,0.00042191,31]
[312440641,1705876450565,-500.0,0.00042191,31]
[312440642,1705876450589,-500.0,0.00042191,31]
[312440643,1705876450613,-965.79,0.00042191,31]
[312440644,1705876450637,-500.0,0.00042191,31]
[312440645,1705876450660,-1343.07,0.00042191,31]
[312440646,1705876450684,-500.0,0.00042191,31]
[312440647,1705876450710,-679.91,0.00042191,31]
[312440648,1705876450734,-1416.26,0.00042191,31]
[312440649,1705876450757,-500.0,0.00042191,31]
[312440650,1705876450781,-826.78,0.00042191,31]
[312440651,1705876450805,-318.36774374,0.00042191,31]
[312440652,1705876450830,-2857.78,0.00042191,31]
[312440653,1705876450854,-500.0,0.00042191,31]
[312440654,1705876450878,-1362.86,0.00042191,31]
[312440655,1705876450901,-1330.2,0.00042191,31]
[312440656,1705876450926,-500.0,0.00042191,31]
[312440657,1705876450950,-726.4,0.00042191,31]
[312440658,1705876450978,-500.0,0.00042191,31]
[312440659,1705876451002,-500.0,0.00042191,31]
[312440660,1705876451027,-1641.3,0.00042191,31]
[312440661,1705876451052,-550.18,0.00042191,31]
[312440662,1705876451075,-500.0,0.00042191,31]
[312440663,1705876451099,-550.1996002,0.00042191,31]
[312440664,1705876451125,-1310.01,0.00042191,31]
[312440665,1705876451150,-500.0,0.00042191,31]
[312440666,1705876451174,-1798.01,0.00042191,31]
[312440667,1705876451198,-13031.87,0.00042191,31]
[312440668,1705876451228,-500.0,0.00042191,31]
[312440669,1705876451252,-500.0,0.00042191,31]
[312440670,1705876451276,-1072.37,0.00042191,31]
[312440671,1705876451300,-1085.7,0.00042191,31]
[312440672,1705876451324,-561.03,0.00042191,31]
[312440673,1705876451348,-500.0,0.00042191,31]
[312440674,1705876451373,-2165.18,0.00042191,31]
[312440675,1705876451397,-8214.94,0.00042191,31]
[312440676,1705876451422,-1298.03,0.00042191,31]
[312440677,1705876451448,-722.05,0.00042191,31]
[312440678,1705876451473,-430.42,0.00042191,31]
[312440679,1705876451497,-3737.76,0.00042191,31]
[312440680,1705876451523,-970.46,0.00042191,31]
[312440681,1705876451547,-1048.9,0.00042191,31]
[312440682,1705876451571,-500.0,0.00042191,31]
[312440683,1705876451597,-16806.33,0.00042191,31]
[312440684,1705876451622,-3948.36,0.00042191,31]
[312440685,1705876451645,-1064.74,0.00042191,31]
[312440686,1705876451670,-6101.21,0.00042191,31]
[312440687,1705876451694,-2855.03,0.00042191,31]
[312440688,1705876451718,-500.32,0.00042191,31]
[312440689,1705876451743,-1126.85,0.00042191,31]
[312440690,1705876451768,-675.32,0.00042191,31]
[312440691,1705876451793,-980.99,0.00042191,31]
[312440692,1705876451817,-574.76,0.00042191,31]
[312440693,1705876451840,-562.96,0.00042191,31]
[312440694,1705876451865,-1933.9,0.00042191,31]
[312440695,1705876451889,-500.0,0.00042191,31]
[312440696,1705876451914,-2304.18,0.00042191,31]
[312440697,1705876451939,-500.0,0.00042191,31]
[312440698,1705876451963,-595.6,0.00042191,31]
[312440699,1705876451994,-500.0,0.00042191,31]
[312440700,1705876452020,-1448.02,0.00042191,31]
[312440701,1705876452044,-2414.11,0.00042191,31]
[312440702,1705876452070,-169.50577167,0.00042191,31]
[312440703,1705876452095,-3726.81,0.00042191,31]
[312440704,1705876452119,-2030.45,0.00042191,31]
[312440705,1705876452144,-847.51,0.00042191,31]
[312440706,1705876452169,-589.67545506,0.00042191,31]
[312440707,1705876452192,-898.05,0.00042191,31]
[312440708,1705876452218,-2858.65,0.00042191,31]
[312440709,1705876452242,-1358.12,0.00042191,31]
[312440710,1705876452267,-1312.1,0.00042191,31]
[312440711,1705876452291,-500.0,0.00042191,31]
[312440712,1705876452315,-500.0,0.00042191,31]
[312440713,1705876452479,-568.68,0.00042191,31]
[312440714,1705876452506,-583.74,0.00042191,31]
[312440715,1705876452531,-614.24,0.00042191,31]
[312440716,1705876452555,-1606.99,0.00042191,31]
[312440717,1705876452580,-500.0,0.00042191,31]
[312440718,1705876452603,-1223.45,0.00042191,31]
[312440719,1705876452630,-1418.03,0.00042191,31]
[312440720,1705876452659,-500.0,0.00042191,31]
[312440721,1705876452687,-500.0,0.00042191,31]
[312440722,1705876452713,-500.0,0.00042191,31]
[312440723,1705876452741,-2466.94,0.00042191,31]
[312440724,1705876452769,-500.0,0.00042191,31]
[312440725,1705876452796,-500.0,0.00042191,31]
[312440726,1705876452824,-924.91,0.00042191,31]
[312440727,1705876452851,-1537.83,0.00042191,31]
[312440728,1705876452878,-2368.54,0.00042191,31]
[312440729,1705876452905,-640.11,0.00042191,31]
[312440730,1705876452931,-640.18,0.00042191,31]
[312440731,1705876452957,-2585.64,0.00042191,31]
[312440732,1705876452984,-500.0,0.00042191,31]
[312440733,1705876453011,-969.19,0.00042191,31]
[312440734,1705876453041,-500.0,0.00042191,31]
[312440735,1705876453068,-500.0,0.00042191,31]
[312440736,1705876453095,-988.92,0.00042191,31]
[312440737,1705876453123,-5197.8,0.00042191,31]
[312440738,1705876453150,-1147.32,0.00042191,31]
[312440739,1705876453177,-528.75983722,0.00042191,31]
[312440740,1705876453203,-503.74,0.00042191,31]
[312440741,1705876453229,-500.0,0.00042191,31]
[312440742,1705876453256,-500.0,0.00042191,31]
[312440743,1705876453281,-1204.72,0.00042191,31]
[312440744,1705876453307,-1125.5,0.00042191,31]
[312440745,1705876453334,-553.42,0.00042191,31]
[312440746,1705876453361,-500.0,0.00042191,31]
[312440747,1705876453389,-500.0,0.00042191,31]
[312440748,1705876453416,-706.24,0.00042191,31]
[312440749,1705876453442,-2915.19,0.00042191,31]
[312440750,1705876453469,-500.0,0.00042191,31]
[312440751,1705876453496,-534.94237673,0.00042191,31]
[312440752,1705876453524,-522.3761109,0.00042191,31]
[312440753,1705876453549,-759.04,0.00042191,31]
[312440754,1705876453575,-1615.44,0.00042191,31]
[312440755,1705876453601,-500.0,0.00042191,31]
[312440756,1705876453629,-993.54,0.00042191,31]
[312440757,1705876453657,-500.0,0.00042191,31]
[312440758,1705876453685,-500.0,0.00042191,31]
[312440759,1705876453713,-618.9,0.00042191,31]
[312440760,1705876453741,-500.0,0.00042191,31]
[312440761,1705876453768,-620.1,0.00042191,31]
[312440762,1705876453794,-3202.93,0.00042191,31]
[312440763,1705876453821,-751.8,0.00042191,31]
[312440764,1705876453847,-500.0,0.00042191,31]
[312440765,1705876453876,-300.0,0.00042191,31]
[312440766,1705876453903,-164.28,0.00042191,31]
[312440767,1705876453930,-216.77,0.00042191,31]
[312440768,1705876453957,-9846.47,0.00042191,31]
[312440769,1705876453985,-8092.29,0.00042191,31]